bitfinex-derivatives/quotes_ETHF0:USTF0_20210401
["timestamp","ask_amount","ask_price","bid_price","bid_amount"]
[1617276561528,16.80495,1912.3,1912.2,2.90695]
[1617276562127,16.80495,1912.3,1912.1,155.9888]
[1617276563529,16.80495,1912.3,1912.1,158.89575]
[1617276564529,16.80495,1912.3,1912.1,236.55975]
[1617276565129,16.80495,1912.3,1912.1,158.89575]
[1617276565330,17.86165,1912.3,1912.1,155.9888]
[1617276565531,17.86165,1912.3,1912.1,157.0463]
[1617276565729,16.80495,1912.3,1912.1,155.9888]
[1617276569531,16.80495,1912.3,1912.2,2.90695]
[1617276570332,16.80495,1912.3,1912.2,4.40765]
[1617276570532,16.80495,1912.3,1912.2,91.97555]
[1617276572533,26.80495,1912.3,1912.2,91.97555]
[1617276573837,26.80495,1912.3,1912.2,4.40765]
[1617276574236,23.898,1912.3,1912.2,4.40765]
[1617276574437,23.898,1912.3,1912.2,2.90695]
[1617276574836,23.898,1912.3,1912.1,155.9888]
[1617276575636,23.898,1912.3,1912.2,2.90695]
[1617276577541,23.898,1912.3,1912.2,71.87835]
[1617276577741,26.80495,1912.3,1912.2,71.87835]
[1617276578844,26.80495,1912.3,1912.2,2.90695]
[1617276583350,27.84305,1912.3,1912.2,2.90695]
[1617276583552,26.80495,1912.3,1912.2,2.90695]
[1617276588655,26.80495,1912.3,1912.2,85.33925]
[1617276600867,26.80495,1912.3,1912.2,2.90695]
[1617276601868,26.80495,1912.3,1912.1,155.9888]
[1617276604369,87.0914,1912.2,1912.1,155.9888]
[1617276604569,88.4616,1912.2,1912.1,155.9888]
[1617276606169,1.3702,1912.2,1912.1,155.9888]
[1617276607069,26.80495,1912.3,1912.1,155.9888]
[1617276617283,56.80495,1912.3,1912.1,155.9888]
[1617276617484,117.0953,1912.2,1912.1,155.9888]
[1617276618083,30.0,1912.2,1912.1,155.9888]
[1617276618887,32.0,1912.2,1912.1,155.9888]
[1617276619086,32.0,1912.2,1912.1,148.8298]
[1617276619286,32.05890885,1912.2,1912.1,148.2177]
[1617276619485,32.05890885,1912.2,1912.1,146.9069]
[1617276619689,32.0,1912.2,1912.1,146.3767]
[1617276619887,32.0,1912.2,1912.1,114.6011]
[1617276620090,32.0,1912.2,1912.1,66.8773]
[1617276620290,32.0,1912.2,1910.2,2.90695]
[1617276620491,32.70679861,1912.2,1910.2,4.00695]
[1617276620690,0.02945567,1911.6,1910.2,4.00695]
[1617276620891,2.18615567,1911.6,1910.2,4.00695]
[1617276621093,79.9443,1911.1,1910.3,13.7561]
[1617276621292,81.1432,1911.1,1910.3,13.7561]
[1617276622097,2.90695,1910.4,1910.3,13.7561]
[1617276622497,1.1989,1911.1,1910.3,13.7561]
[1617276622703,1.1189,1911.6,1910.5,68.0659]
[1617276622903,0.02946813,1911.7,1910.5,1.3094]
[1617276623100,0.02947636,1911.8,1911.1,68.0246]
[1617276623300,0.02947636,1911.8,1911.1,69.1802]
[1617276623502,0.02948586,1911.9,1911.1,69.1802]
[1617276623702,0.02950221,1912.2,1911.1,69.1802]
[1617276624104,10.02951401,1912.3,1911.3,2.90695]
[1617276624704,0.02950652,1912.2,1911.3,2.90695]
[1617276625906,10.0,1912.3,1911.3,2.90695]
[1617276626106,2.90695,1911.4,1911.3,2.90695]
[1617276627106,2.90695,1911.4,1911.2,13.8207]
[1617276629510,2.90695,1911.4,1911.3,59.3507]
[1617276629709,2.90695,1911.4,1911.3,60.7009]
[1617276630109,2.90695,1911.4,1911.3,63.60785]
[1617276635913,2.90695,1911.4,1911.3,60.7009]
[1617276636114,2.90695,1911.4,1911.3,59.3507]
[1617276638114,2.90695,1911.4,1911.2,13.8207]
[1617276643920,2.90695,1911.4,1911.3,76.7913]
[1617276644120,2.90695,1911.4,1911.3,79.69825]
[1617276645321,2.90695,1911.4,1911.3,76.7913]
[1617276645923,2.90695,1911.4,1911.3,77.8363]
[1617276646122,2.90695,1911.4,1911.3,80.74325]
[1617276646523,10.0,1912.3,1911.3,80.74325]
[1617276647524,10.0,1912.3,1911.3,3.95195]
[1617276647724,10.0,1912.3,1911.7,84.1014]
[1617276647926,10.0,1912.3,1911.7,85.4831]
[1617276648124,10.0,1912.3,1912.2,2.90695]
[1617276648325,10.0,1912.3,1912.2,4.33935]
[1617276650126,12.90695,1912.3,1912.2,4.33935]
[1617276653829,10.0,1912.3,1912.2,4.33935]
[1617276654029,11.0381,1912.3,1912.2,4.33935]
[1617276654229,10.0,1912.3,1912.2,4.33935]
[1617276658035,10.0,1912.3,1912.2,6.33935]
[1617276679051,10.0,1912.3,1912.2,4.90695]
[1617276680150,10.0,1912.3,1912.2,6.33585]
[1617276680852,7.3865,1912.3,1912.2,6.33585]
[1617276682453,4.0034,1912.3,1912.2,6.33585]
[1617276682653,2.958,1912.3,1912.2,6.33585]
[1617276683853,1.908,1912.3,1912.2,6.33585]
[1617276684054,75.72,1914.1,1912.2,6.33585]
[1617276684255,75.72,1914.1,1913.8,70.41215]
[1617276684456,75.72,1914.1,1913.8,71.81305]
[1617276685054,75.72,1914.1,1913.9,14.3141]
[1617276686454,2.90695,1914.0,1913.9,14.3141]
[1617276687856,75.72,1914.1,1913.9,14.3141]
[1617276688456,75.72,1914.1,1914.0,2.90695]
[1617276692260,0.0594319,1915.3,1914.0,2.90695]
[1617276692461,0.0594319,1915.3,1914.7,79.18945]
[1617276692660,21.0526,1915.5,1914.7,79.18945]
[1617276693359,21.0526,1915.5,1914.8,14.2163]
[1617276693760,21.0526,1915.5,1914.8,15.2195]
[1617276694359,2.90695,1914.9,1914.8,15.2195]
[1617276695162,2.90695,1914.9,1914.8,1.2195]
[1617276697371,21.0526,1915.5,1914.8,1.2195]
[1617276698372,21.0526,1915.5,1915.3,2.90695]
[1617276700373,23.95955,1915.5,1915.3,2.90695]
[1617276703576,23.95955,1915.5,1915.3,76.35985]
[1617276704578,23.95955,1915.5,1915.3,3.94635]
[1617276704981,23.95955,1915.5,1915.3,1.0394]
[1617276705178,23.95955,1915.5,1914.8,0.2163]
[1617276705379,25.59595,1915.5,1914.8,0.2163]
[1617276706579,22.689,1915.5,1915.2,2.90695]
[1617276707480,21.0526,1915.5,1915.2,2.90695]
[1617276707680,21.0526,1915.5,1915.3,62.0915]
[1617276708480,21.0526,1915.5,1915.4,2.90695]
[1617276709381,22.1026,1915.5,1915.4,2.90695]
[1617276709582,21.0526,1915.5,1915.4,2.90695]
[1617276710481,23.95955,1915.5,1915.4,2.90695]
[1617276710882,23.95955,1915.5,1915.4,4.20505]
[1617276714491,21.0526,1915.5,1915.4,4.20505]
[1617276716293,35.0526,1915.5,1915.4,4.20505]
[1617276722801,35.0526,1915.5,1915.4,2.90695]
[1617276723001,36.0942,1915.5,1915.4,2.90695]
[1617276723202,35.0526,1915.5,1915.4,79.15385]
[1617276724603,36.4861,1915.5,1915.4,79.15385]
[1617276725005,36.4861,1915.5,1914.8,0.2163]
[1617276726608,2.90695,1914.9,1914.8,0.2163]
[1617276726809,4.31965,1914.9,1914.8,0.2163]
[1617276728810,90.56655,1914.9,1914.8,0.2163]
[1617276729912,4.31965,1914.9,1914.8,0.2163]
[1617276731316,2.90695,1914.9,1914.8,0.2163]
[1617276733317,68.3336,1915.4,1914.8,0.2163]
[1617276733516,35.0526,1915.5,1914.8,0.2163]
[1617276734119,35.0526,1915.5,1915.1,61.0499]
[1617276734318,35.0526,1915.5,1915.1,62.5174]
[1617276734919,35.0526,1915.5,1915.3,2.90695]
[1617276736819,2.90695,1915.4,1915.3,2.90695]
[1617276738723,2.90695,1915.4,1915.0,63.084]
[1617276738926,2.90695,1915.1,1915.0,63.084]
[1617276739325,4.05715,1915.1,1915.0,63.084]
[1617276740329,4.05715,1915.1,1914.9,2.90695]
[1617276741130,4.05715,1915.1,1914.8,0.2163]
[1617276742131,2.90695,1915.1,1914.8,0.2163]
[1617276743035,35.0526,1915.5,1915.1,77.0743]
[1617276743231,35.0526,1915.5,1915.1,78.3599]
[1617276745033,2.90695,1915.2,1915.1,78.3599]
[1617276745232,2.90695,1915.2,1915.1,1.2856]
[1617276745833,2.90695,1915.2,1915.0,2.90695]
[1617276746434,35.0526,1915.5,1915.0,2.90695]
[1617276746634,35.0526,1915.5,1915.3,74.3822]
[1617276747034,35.0526,1915.5,1915.4,2.90695]
[1617276747235,35.0526,1915.5,1915.4,4.01835]
[1617276749941,34.9446,1915.5,1915.4,4.01835]
[1617276750141,33.4635,1915.5,1915.4,4.01835]
[1617276752644,33.2408,1915.5,1915.4,4.01835]
[1617276756247,14.0,1915.5,1915.4,4.01835]
[1617276757246,13.9409,1915.5,1915.4,4.01835]
[1617276757846,13.8635,1915.5,1915.4,4.01835]
[1617276758046,13.7885,1915.5,1915.4,4.01835]
[1617276759550,13.7885,1915.5,1915.4,2.90695]
[1617276767459,13.7885,1915.5,1915.4,4.54015]
[1617276769458,13.7885,1915.5,1915.4,2.90695]
[1617276770657,13.7885,1915.5,1915.4,4.48565]
[1617276772858,13.7885,1915.5,1915.4,5.58565]
[1617276773058,11.9389,1915.5,1915.4,5.58565]
[1617276773258,11.5523,1915.5,1915.4,5.58565]
[1617276773459,9.0257,1915.5,1915.4,5.58565]
[1617276773859,8.8834,1915.5,1915.4,5.58565]
[1617276774060,8.8284,1915.5,1915.4,5.58565]
[1617276774258,8.0489,1915.5,1915.4,5.58565]
[1617276774459,7.5036,1915.5,1915.4,5.58565]
[1617276774660,6.7486,1915.5,1915.4,5.58565]
[1617276774861,6.0915,1915.5,1915.4,5.58565]
[1617276775863,6.0915,1915.5,1915.4,4.00695]
[1617276776265,5.0715,1915.5,1915.4,4.00695]
[1617276777270,4.8112,1915.5,1915.4,4.00695]
[1617276777869,4.2844,1915.5,1915.4,4.00695]
[1617276778271,3.8521,1915.5,1915.4,4.00695]
[1617276779067,3.3452,1915.5,1915.4,4.00695]
[1617276779668,3.0608,1915.5,1915.4,4.00695]
[1617276779868,0.8558,1915.5,1915.4,4.00695]
[1617276781571,0.3382,1915.5,1915.4,4.00695]
[1617276781770,0.036,1915.5,1915.4,4.00695]
[1617276781970,83.4324,1916.9,1915.4,4.00695]
[1617276782170,83.4324,1916.9,1915.5,75.571]
[1617276783071,83.4324,1916.9,1916.8,2.90695]
[1617276783272,2.90695,1917.0,1916.8,2.90695]
[1617276786577,4.01135,1917.0,1916.5,81.1953]
[1617276786778,4.01135,1917.0,1915.5,14.5951]
[1617276787178,4.01135,1917.0,1916.3,2.90695]
[1617276787179,1.1044,1917.0,1916.3,2.90695]
[1617276788181,2.1344,1917.0,1915.6,14.9928]
[1617276788379,32.0,1916.9,1915.6,14.9928]
[1617276789179,32.0,1916.9,1916.0,2.90695]
[1617276791188,32.0,1916.9,1916.2,2.90695]
[1617276791383,2.0,1916.9,1916.2,2.90695]
[1617276791595,2.0,1916.8,1916.2,2.90695]
[1617276793183,2.90695,1916.3,1916.2,2.90695]
[1617276804097,2.90695,1916.3,1916.1,71.9927]
[1617276804896,2.90695,1916.3,1915.6,14.9928]
[1617276805295,1.5601,1916.5,1915.8,2.90695]
[1617276805897,116.53,1917.0,1915.8,2.90695]
[1617276807298,116.53,1917.0,1916.2,2.90695]
[1617276807499,2.0,1917.0,1916.2,2.90695]
[1617276807702,30.0,1917.7,1916.3,82.2878]
[1617276807898,2.0,1917.6,1916.3,82.2878]
[1617276808099,30.0,1917.5,1916.3,82.2878]
[1617276808301,30.0,1917.3,1916.3,82.2878]
[1617276808499,2.0,1917.2,1916.3,82.2878]
[1617276809399,2.0,1917.2,1916.6,2.90695]
[1617276811300,2.90695,1916.7,1916.6,2.90695]
[1617276812504,2.0,1917.6,1917.5,74.4228]
[1617276812704,0.05973397,1918.3,1917.5,75.9557]
[1617276813104,0.05976628,1918.6,1917.5,1.5329]
[1617276813304,0.05976628,1918.6,1918.2,74.4108]
[1617276813504,0.05980778,1918.9,1918.0,1.1136]
[1617276813704,0.05980778,1918.9,1917.7,2.90695]
[1617276813903,30.0,1918.7,1917.7,2.90695]
[1617276814508,30.0,1918.5,1917.7,2.90695]
[1617276814706,30.0,1918.3,1917.7,2.90695]
[1617276814907,32.0,1918.3,1917.7,2.90695]
[1617276815309,2.90695,1917.8,1917.7,2.90695]
[1617276816211,2.90695,1917.8,1917.3,76.24225]
[1617276817412,32.0,1918.3,1917.4,2.90695]
[1617276818613,2.0,1918.3,1917.4,2.90695]
[1617276818814,32.0,1918.7,1917.4,2.90695]
[1617276819314,2.90695,1917.5,1917.4,2.90695]
[1617276819514,32.0,1918.7,1917.4,2.90695]
[1617276820120,32.0,1918.7,1917.9,81.3677]
[1617276820322,32.0,1918.7,1917.9,82.839]
[1617276821022,30.0,1918.7,1917.9,82.839]
[1617276821423,2.90695,1918.0,1917.9,85.74595]
[1617276822923,2.90695,1918.0,1917.9,84.27465]
[1617276823324,2.90695,1918.0,1917.9,2.90695]
[1617276838852,2.38485,1918.0,1917.9,2.90695]
[1617276839053,15.0,1918.6,1918.0,79.939]
[1617276839454,15.0,1918.6,1918.5,2.90695]
[1617276841456,17.90695,1918.6,1918.5,2.90695]
[1617276843459,15.0,1918.6,1918.5,2.90695]
[1617276844958,7.7429,1918.6,1918.5,2.90695]
[1617276845559,7.6739,1918.6,1918.5,2.90695]
[1617276846359,4.8114,1918.6,1918.5,2.90695]
[1617276846559,0.7411,1918.6,1918.5,2.90695]
[1617276848462,0.7411,1918.6,1918.5,4.76995]
[1617276854771,83.1957,1919.9,1918.5,4.76995]
[1617276855572,83.1957,1919.9,1919.7,2.90695]
[1617276855771,2.0,1920.5,1919.7,2.90695]
[1617276856372,32.0,1920.5,1919.7,2.90695]
[1617276856971,32.0,1920.5,1920.1,84.3417]
[1617276857671,2.90695,1920.2,1920.1,84.3417]
[1617276858871,2.90695,1920.2,1919.7,2.90695]
[1617276859571,2.90695,1919.8,1919.7,2.90695]
[1617276860174,2.90695,1919.8,1919.1,1.0625]
[1617276861377,2.90695,1919.8,1919.7,83.8744]
[1617276863981,2.90695,1919.8,1919.3,2.90695]
[1617276864182,3.98235,1919.8,1919.3,2.90695]
[1617276865785,2.90695,1919.4,1919.3,2.90695]
[1617276866685,4.02295,1919.4,1919.3,2.90695]
[1617276869591,4.02295,1919.4,1919.3,85.64465]
[1617276870092,4.02295,1919.4,1919.3,2.90695]
[1617276870292,4.02295,1919.4,1918.4,1.1]
[1617276870494,2.0,1919.3,1918.4,1.1]
[1617276870693,32.0,1919.3,1918.4,1.1]
[1617276871297,32.0,1919.3,1918.2,13.9136]
[1617276871995,32.0,1919.3,1918.7,2.90695]
[1617276872998,32.0,1919.3,1918.2,13.9136]
[1617276873199,112.7763,1919.3,1918.2,13.9136]
[1617276874002,4.09145,1918.3,1918.2,13.9136]
[1617276876812,2.90695,1918.3,1918.2,98.5085]
[1617276877010,2.90695,1918.3,1918.2,13.9136]
[1617276877225,14.96902281,1921.1,1918.2,13.9136]
[1617276877226,30.0,1920.5,1918.2,13.9136]
[1617276877420,30.0,1919.7,1918.2,13.9136]
[1617276877618,30.0,1919.7,1918.2,15.2205]
[1617276877908,30.0,1919.7,1918.8,2.90695]
[1617276878111,30.0,1919.7,1918.8,4.12775]
[1617276879410,2.0,1919.8,1918.8,4.12775]
[1617276879812,30.0,1919.7,1918.8,4.12775]
[1617276880011,30.0,1919.7,1918.8,1.2208]
[1617276880614,28.14,1919.7,1918.8,1.2208]
[1617276880813,28.14,1919.7,1919.0,83.1907]
[1617276882018,2.90695,1919.1,1919.0,86.09765]
[1617276882217,2.90695,1919.1,1919.0,2.90695]
[1617276890824,28.14,1920.2,1919.0,2.90695]
[1617276892024,28.14,1920.2,1919.8,2.90695]
[1617276892222,3.046,1921.2,1919.8,2.90695]
[1617276892422,30.0,1920.9,1919.8,2.90695]
[1617276892625,30.0,1920.7,1920.0,80.0479]
[1617276892822,32.0,1920.7,1920.0,80.0479]
[1617276894022,2.90695,1920.1,1920.0,80.0479]
[1617276900131,2.90695,1920.1,1920.0,82.95485]
[1617276900929,2.90695,1920.1,1920.0,80.0479]
[1617276902230,32.90695,1920.1,1919.5,81.5261]
[1617276904234,4.01395,1919.6,1919.5,81.5261]
[1617276904634,34.01395,1919.6,1919.5,81.5261]
[1617276905034,34.01395,1919.6,1918.9,15.1097]
[1617276905634,4.01395,1919.6,1918.9,15.1097]
[1617276905835,2.90695,1919.6,1919.2,75.6428]
[1617276906235,2.0,1919.9,1919.2,75.6428]
[1617276906236,2.90695,1919.3,1919.2,79.96535]
[1617276906835,1.0256,1920.6,1919.2,4.32255]
[1617276907036,30.0,1920.7,1920.0,73.1296]
[1617276907235,30.0,1920.7,1920.0,74.5756]
[1617276908238,2.90695,1920.1,1920.0,74.5756]
[1617276911238,2.90695,1920.1,1920.0,1.446]
[1617276912241,2.90695,1920.1,1919.9,65.71175]
[1617276914045,2.90695,1920.1,1919.9,2.90695]
[1617276920349,2.90695,1920.1,1919.4,74.8946]
[1617276922353,114.4456,1920.3,1919.4,77.80155]
[1617276922853,114.50612191,1920.3,1919.4,77.80155]
[1617276923853,0.06054797,1920.2,1919.4,77.80155]
[1617276924254,0.06054797,1920.2,1919.6,2.90695]
[1617276926359,2.90695,1919.7,1919.6,2.90695]
[1617276936770,2.90695,1919.7,1918.9,15.1097]
[1617276936969,71.94735,1919.7,1918.9,15.1097]
[1617276937771,101.94735,1919.7,1918.9,15.1097]
[1617276938371,99.0404,1919.7,1919.2,2.90695]
[1617276939071,30.0,1919.7,1919.2,2.90695]
[1617276939672,1.5158,1919.8,1919.2,2.90695]
[1617276939872,31.5158,1919.8,1919.2,2.90695]
[1617276940473,2.90695,1919.3,1919.2,2.90695]
[1617276946679,4.12665,1919.3,1918.9,15.1097]
[1617276948486,2.90695,1919.0,1918.9,15.1097]
[1617276957690,4.35075,1919.0,1918.9,15.1097]
[1617276963198,62.87245,1919.0,1918.9,15.1097]
[1617276964894,92.87245,1919.0,1918.9,15.1097]
[1617276969199,62.87245,1919.0,1918.9,15.1097]
[1617276969999,4.35075,1919.0,1918.9,15.1097]
[1617276970198,2.90695,1919.0,1918.9,15.1097]
[1617276971199,32.90695,1919.0,1918.9,15.1097]
[1617276972199,34.90695,1919.0,1918.9,15.1097]
[1617276972499,32.90695,1919.0,1918.9,15.1097]
[1617276974700,2.90695,1919.0,1918.9,15.1097]
[1617276976702,2.90695,1919.0,1918.9,18.01665]
[1617276977101,2.90695,1919.0,1918.9,104.00635]
[1617276978301,2.90695,1919.0,1918.9,18.01665]
[1617276978803,2.90695,1919.0,1918.9,15.1097]
[1617276979305,4.06475,1919.0,1918.9,15.1097]
[1617276980105,34.06475,1919.0,1918.9,15.1097]
[1617276985615,2.90695,1919.0,1918.9,15.1097]
[1617276988016,30.06086283,1919.5,1918.9,15.1097]
[1617276988216,30.0,1919.5,1918.9,15.1097]
[1617276988617,2.90695,1919.0,1918.9,15.1097]
[1617276992923,32.90695,1919.0,1918.9,15.1097]
[1617277000629,2.90695,1919.0,1918.9,15.1097]
[1617277001029,32.90695,1919.0,1918.9,15.1097]
[1617277003733,112.01535,1919.0,1918.9,15.1097]
[1617277006539,113.28475,1919.0,1918.9,15.1097]
[1617277008039,32.90695,1919.0,1918.9,15.1097]
[1617277010644,2.90695,1919.0,1918.9,15.1097]
[1617277015647,65.78675,1919.0,1918.9,15.1097]
[1617277021853,2.90695,1919.0,1918.9,15.1097]
[1617277022655,2.90695,1919.0,1918.9,78.9087]
[1617277024760,2.90695,1919.0,1918.9,80.3077]
[1617277029163,2.90695,1919.0,1918.9,78.9087]
[1617277030762,2.90695,1919.0,1918.9,15.1097]
[1617277030963,2.90695,1919.0,1918.9,16.6606]
[1617277031964,2.90695,1919.0,1918.9,15.1097]
[1617277037273,2.90695,1919.0,1918.9,16.61]
[1617277038474,2.90695,1919.0,1918.9,15.1097]
[1617277040876,32.90695,1919.0,1918.9,15.1097]
[1617277041278,32.90695,1919.0,1918.1,1.1]
[1617277041279,32.96790716,1919.0,1918.1,1.1]
[1617277041476,67.2785,1918.8,1918.1,1.1]
[1617277041677,68.3451,1918.8,1918.1,1.1]
[1617277042980,68.40606257,1918.8,1918.1,1.1]
[1617277043479,2.90695,1918.2,1918.1,1.1]
[1617277054288,0.06097478,1919.0,1918.1,65.252]
[1617277054488,0.06097478,1919.0,1918.1,2.7162]
[1617277054689,0.06097478,1919.0,1918.9,65.7004]
[1617277054890,0.06097134,1919.2,1918.9,65.7004]
[1617277055088,0.06097134,1919.2,1918.9,1.6065]
[1617277055592,2.90695,1919.0,1918.9,1.6065]
[1617277055789,2.90695,1919.0,1918.8,2.90695]
[1617277056193,2.96792687,1919.0,1918.8,2.90695]
[1617277056392,2.96792687,1919.0,1918.3,64.1627]
[1617277056992,0.06098386,1918.9,1918.3,64.1627]
[1617277057493,2.90695,1918.4,1918.3,64.1627]
[1617277071611,2.90695,1918.4,1918.3,67.06965]
[1617277072210,2.90695,1918.4,1918.3,2.90695]
[1617277073614,2.90695,1918.4,1918.2,14.3133]
[1617277073813,2.90695,1918.4,1918.3,65.9852]
[1617277074212,2.90695,1918.4,1918.2,14.3133]
[1617277075613,2.90695,1918.4,1918.3,2.90695]
[1617277078720,2.90695,1918.4,1918.3,4.01605]
[1617277080619,0.06100767,1918.8,1918.3,4.01605]
[1617277081225,0.06100202,1919.0,1918.3,4.01605]
[1617277081624,0.06100202,1919.0,1918.5,2.90695]
[1617277083422,0.06099961,1918.9,1918.5,2.90695]
[1617277083727,2.90695,1918.6,1918.5,2.90695]
[1617277084530,2.90695,1918.6,1918.2,14.3133]
[1617277085629,0.06099961,1918.9,1918.4,2.90695]
[1617277085830,0.06099961,1918.9,1918.6,61.1286]
[1617277086331,0.06099961,1918.9,1918.4,2.90695]
[1617277086729,0.48802005,1919.1,1918.4,2.90695]
[1617277086730,0.0610033,1918.8,1918.4,2.90695]
[1617277087129,0.06099988,1919.0,1918.8,64.9773]
[1617277087331,0.06099609,1919.1,1918.8,64.9773]
[1617277087729,0.06099609,1919.1,1919.0,2.90695]
[1617277087930,0.06099299,1919.2,1918.8,1.3611]
[1617277088128,80.777,1919.0,1918.8,1.3611]
[1617277088330,80.777,1919.0,1918.2,14.3133]
[1617277088730,80.83799753,1919.0,1918.2,14.3133]
[1617277089732,80.83799753,1919.0,1918.5,2.90695]
[1617277089932,80.83799753,1919.0,1918.2,14.3133]
[1617277090537,0.06099137,1918.9,1918.2,14.3133]
[1617277091733,2.90695,1918.3,1918.2,17.22025]
[1617277092436,89.06805,1918.3,1918.2,17.22025]
[1617277096942,2.90695,1918.3,1918.2,17.22025]
[1617277100744,76.17305,1918.3,1918.2,17.22025]
[1617277101745,73.2661,1918.3,1918.2,14.3133]
[1617277102146,76.17305,1918.3,1918.2,14.3133]
[1617277104546,77.35535,1918.3,1918.2,14.3133]
[1617277107455,2.90695,1918.3,1918.2,14.3133]
[1617277110858,3.93835,1918.3,1918.2,15.3552]
[1617277111060,2.90695,1918.3,1918.2,15.3552]
[1617277111360,2.90695,1918.3,1918.2,14.3133]
[1617277127383,0.06105453,1918.6,1918.2,14.3133]
[1617277127583,0.06105453,1918.6,1918.2,15.3324]
[1617277127984,59.8343,1918.7,1918.2,15.3324]
[1617277128384,59.8343,1918.7,1918.6,2.90695]
[1617277128584,0.06104826,1918.8,1918.6,2.90695]
[1617277130290,2.90695,1918.7,1918.6,2.90695]
[1617277130684,2.96799162,1918.7,1918.6,2.90695]
[1617277131085,2.96799162,1918.7,1918.5,81.887]
[1617277131286,2.96799162,1918.7,1918.2,14.3133]
[1617277131886,0.06104411,1918.6,1918.2,14.3133]
[1617277132485,2.90695,1918.3,1918.2,17.22025]
[1617277138790,3.93515,1918.3,1918.2,17.22025]
[1617277138990,2.90695,1918.3,1918.2,17.22025]
[1617277151512,2.90695,1918.3,1918.2,98.18675]
[1617277155112,2.90695,1918.3,1918.2,17.22025]
[1617277159416,3.98055,1918.3,1918.2,17.22025]
[1617277159615,3.98055,1918.3,1918.2,14.3133]
[1617277160716,69.34025,1918.3,1918.2,14.3133]
[1617277162117,3.98055,1918.3,1918.2,14.3133]
[1617277162318,2.90695,1918.3,1918.2,14.3133]
[1617277163318,4.24085,1918.3,1918.2,14.3133]
[1617277164919,5.28025,1918.3,1918.2,14.3133]
[1617277165121,5.34130924,1918.3,1918.2,14.3133]
[1617277165522,5.28025,1918.3,1918.2,14.3133]
[1617277165722,7.28025,1918.3,1918.2,14.3133]
[1617277166022,8.01314658,1918.3,1918.2,14.3133]
[1617277166621,8.01314658,1918.3,1917.2,2.584]
[1617277166823,8.01314658,1918.3,1917.1,2.90695]
[1617277167223,0.03053789,1917.6,1917.1,2.90695]
[1617277167423,1.68133789,1917.6,1917.1,2.90695]
[1617277168625,2.90695,1917.2,1916.9,2.90695]
[1617277170626,2.90695,1917.0,1916.9,2.90695]
[1617277175028,2.88705797,1917.0,1916.9,2.90695]
[1617277193250,2.88705797,1917.0,1916.5,14.8591]
[1617277194951,77.866,1917.1,1916.6,2.90695]
[1617277195151,2.0,1917.9,1916.6,2.90695]
[1617277195353,70.7196,1917.8,1916.9,70.7196]
[1617277196952,2.90695,1917.0,1916.9,70.7196]
[1617277197152,2.90695,1917.0,1916.6,2.90695]
[1617277199055,66.7067,1917.1,1916.6,2.90695]
[1617277199255,66.7067,1917.1,1916.6,4.09105]
[1617277200955,66.7067,1917.1,1917.0,2.90695]
[1617277203057,69.61365,1917.1,1916.5,81.5658]
[1617277204959,66.7067,1917.1,1916.7,2.90695]
[1617277206963,2.90695,1916.8,1916.7,2.90695]
[1617277209265,2.90695,1916.8,1916.7,72.42455]
[1617277214869,2.90695,1916.8,1916.7,73.59175]
[1617277218470,0.03031718,1918.4,1916.7,4.07415]
[1617277218671,0.03031718,1918.4,1917.5,79.9077]
[1617277218870,0.03031718,1918.4,1917.5,81.4619]
[1617277219073,0.03031718,1918.4,1917.7,2.90695]
[1617277219272,0.03031931,1918.6,1917.7,2.90695]
[1617277219472,1.53930891,1918.9,1918.3,81.4766]
[1617277219673,0.03031686,1919.0,1918.3,81.4766]
[1617277219873,0.03031651,1919.1,1918.3,81.4766]
[1617277220472,79.93593302,1919.2,1918.3,81.4766]
[1617277220473,79.9056147,1919.2,1918.3,81.4766]
[1617277221174,2.90695,1918.4,1918.3,81.4766]
[1617277221974,79.9056147,1919.2,1918.3,81.4766]
[1617277223173,79.8753,1919.2,1918.7,2.90695]
[1617277223374,0.03031002,1919.3,1918.7,4.12975]
[1617277223573,0.03031002,1919.3,1918.9,73.0247]
[1617277223776,0.09093011,1919.4,1918.9,73.0247]
[1617277223975,0.03031006,1919.4,1918.9,73.0247]
[1617277224375,0.0303075,1919.5,1918.9,73.0247]
[1617277225176,0.0303075,1919.5,1919.0,2.90695]
[1617277225376,0.0303075,1919.5,1919.3,58.9214]
[1617277225576,0.03030689,1919.6,1919.3,60.5886]
[1617277225778,0.06061379,1919.7,1919.3,60.5886]
[1617277225779,0.09092033,1919.7,1919.3,60.5886]
[1617277226177,0.03030654,1919.7,1919.3,60.5886]
[1617277227178,2.90695,1919.4,1919.3,63.49555]
[1617277230984,0.03028975,1919.9,1919.3,63.49555]
[1617277231185,0.03028975,1919.9,1919.8,2.90695]
[1617277231386,0.03028975,1919.9,1919.8,3.96775]
[1617277231986,11.0,1920.0,1919.8,3.96775]
[1617277232684,11.0,1920.0,1919.8,2.90695]
[1617277232885,11.0,1920.0,1919.6,73.06]
[1617277233086,11.03028495,1920.0,1919.6,73.06]
[1617277233287,2.90695,1919.7,1919.4,2.90695]
[1617277233486,69.90325,1919.7,1919.4,2.90695]
[1617277233988,69.90325,1919.7,1919.1,66.9963]
[1617277235187,2.90695,1919.2,1919.1,66.9963]
[1617277238996,2.90695,1919.2,1919.0,2.90695]
[1617277240096,2.90695,1919.2,1918.6,99.753]
[1617277241300,2.90695,1918.7,1918.6,99.753]